bitfinex-derivatives/quotes_ETHF0:USTF0_20250530
["timestamp","ask_amount","ask_price","bid_price","bid_amount"]
[1748615285594,0.77942125,2584.6,2584.5,3.2078]
[1748615285789,0.77367,2584.4,2584.3,4.504]
[1748615285996,1.3047,2584.5,2584.3,4.504]
[1748615286193,4.5125,2584.5,2584.0,1.3367]
[1748615286500,0.77379,2584.0,2583.9,5.27782]
[1748615286798,0.77378,2584.1,2584.0,0.77378]
[1748615287096,5.8133,2584.5,2583.9,4.504]
[1748615287097,1.2901,2584.3,2583.9,4.504]
[1748615287292,0.77379,2584.0,2583.9,6.6105]
[1748615287688,0.77379,2584.0,2583.9,4.504]
[1748615288088,3.2078,2584.1,2583.8,0.00581125]
[1748615288391,2.06392,2583.9,2583.8,0.00581125]
[1748615289388,1.93466,2583.8,2583.2,3.2078]
[1748615289686,1.93466,2583.8,2583.1,5.1168]
[1748615289687,5.1241,2583.7,2583.1,4.491]
[1748615289888,0.77401,2583.3,2583.1,0.77404]
[1748615290089,1.93477,2583.6,2582.8,4.5405]
[1748615290090,0.77409,2583.0,2582.8,3.2078]
[1748615290299,0.77407,2583.1,2582.9,0.7741]
[1748615290595,0.77412,2582.9,2582.8,3.2078]
[1748615290797,0.77415,2582.8,2582.7,0.00581125]
[1748615290993,2.10365,2582.8,2582.7,0.00581125]
[1748615291293,3.2078,2583.1,2582.7,0.00581125]
[1748615291496,0.00581125,2583.3,2583.2,0.77403]
[1748615292392,3.2078,2584.3,2583.2,5.6724]
[1748615292592,0.77374,2584.2,2584.0,0.77378]
[1748615292795,2.00494,2584.2,2584.0,0.77376]
[1748615292992,1.2312,2584.2,2584.1,0.77376]
[1748615293403,2.00493,2584.2,2584.1,0.77376]
[1748615293599,0.00581125,2584.4,2584.1,3.2078]
[1748615293898,0.00581125,2584.4,2584.3,0.7737]
[1748615294900,0.77948125,2584.4,2584.3,0.7737]
[1748615295705,0.00581125,2584.4,2584.3,0.7737]
[1748615296301,0.7737,2584.3,2584.2,1.3024]
[1748615296505,0.77951125,2584.4,2584.3,0.7737]
[1748615297000,0.00581125,2584.4,2584.3,0.7737]
[1748615297201,0.06993857,2584.7,2584.6,0.77361]
[1748615297397,0.77342,2585.3,2584.6,3.2078]
[1748615297604,2.03649,2585.4,2585.2,0.77341]
[1748615297808,1.2631,2585.4,2585.2,0.77341]
[1748615298101,1.299,2585.6,2585.1,3.2078]
[1748615298304,2.07231,2585.6,2585.4,0.77336]
[1748615298899,1.299,2585.6,2585.1,3.2078]
[1748615299095,0.77338,2585.4,2585.2,0.77341]
[1748615299302,4.5309,2585.5,2584.7,1.42337]
[1748615299497,3.2078,2585.2,2584.7,0.77356]
[1748615299697,0.77359,2584.7,2584.5,0.77363]
[1748615299909,3.98136,2584.8,2584.6,0.77358]
[1748615300103,0.77356,2584.8,2584.7,0.77358]
[1748615300407,0.6628,2585.0,2584.5,5.1419]
[1748615300608,0.77342,2585.3,2585.1,0.77346]
[1748615300911,1.9859,2585.5,2584.8,3.2078]
[1748615301102,1.9859,2585.5,2584.7,0.77355]
[1748615301103,0.77353,2584.9,2584.7,0.77355]
[1748615301302,0.77353,2584.9,2584.4,7.6988]
[1748615301504,1.3231,2585.2,2584.5,1.3377]
[1748615301805,0.77359,2584.7,2584.6,0.7736]
[1748615302108,0.77357,2584.8,2584.6,0.7736]
[1748615302305,0.77353,2584.9,2584.5,1.3377]
[1748615302504,1.2274,2584.8,2584.5,1.3377]
[1748615302707,1.2274,2584.8,2584.7,0.77358]
[1748615302907,0.77358,2584.7,2584.6,0.7736]
[1748615303415,1.2274,2584.8,2584.5,0.77363]
[1748615303606,0.77359,2584.7,2584.6,0.77361]
[1748615304808,1.2274,2584.8,2584.7,0.77358]
[1748615305415,1.2274,2584.8,2584.6,0.77359]
[1748615305617,1.2274,2584.8,2584.7,0.77358]
[1748615306011,2.00095,2584.8,2584.7,0.77358]
[1748615306211,1.2274,2584.8,2584.7,0.77358]
[1748615306411,2.59618,2585.5,2585.1,0.77346]
[1748615306412,1.2502,2585.2,2585.1,0.77346]
[1748615306709,1.2502,2585.2,2584.6,3.2078]
[1748615307415,1.2502,2585.2,2584.9,0.7735]
[1748615307611,1.2502,2585.2,2585.0,0.77349]
[1748615307815,2.02363,2585.2,2585.1,0.77346]
[1748615308008,1.2502,2585.2,2585.1,0.77346]
[1748615308210,1.43616,2585.5,2584.9,3.2078]
[1748615308518,3.94953857,2585.6,2585.1,0.77346]
[1748615308718,0.77334,2585.5,2585.4,0.77336]
[1748615309012,0.06993857,2585.6,2585.5,0.77334]
[1748615309220,0.06993857,2585.6,2585.5,2.11054]
[1748615310218,5.1146,2586.5,2586.1,0.77316]
[1748615310520,0.77318,2586.1,2586.0,0.00579979]
[1748615311813,2.03868,2586.1,2586.0,0.00579979]
[1748615314019,3.2078,2586.8,2586.6,0.77299]
[1748615314217,0.77305,2586.5,2586.4,0.77305]
[1748615314419,0.77305,2586.5,2586.4,1.99315]
[1748615314616,0.77305,2586.5,2586.4,1.99317]
[1748615314920,0.77305,2586.5,2586.4,1.2201]
[1748615315117,0.77304,2586.5,2586.4,1.99314]
[1748615315524,0.77301,2586.7,2586.6,0.773]
[1748615315720,1.3141,2586.8,2586.6,3.2078]
[1748615316022,1.2478,2587.4,2586.8,1.93238]
[1748615316321,1.2478,2587.4,2587.3,0.7728]
[1748615316322,0.6205,2587.4,2587.3,0.7728]
[1748615316517,0.77277,2587.4,2587.1,3.2078]
[1748615316729,0.77277,2587.4,2587.3,0.77278]
[1748615316913,1.93177,2587.7,2587.1,3.2078]
[1748615317116,5.7697,2587.8,2587.2,0.77281]
[1748615317117,0.77282,2587.3,2587.2,0.77281]
[1748615317423,2.08688,2587.4,2587.3,0.7728]
[1748615317622,1.3141,2587.4,2587.1,3.2078]
[1748615317817,2.08689,2587.4,2587.3,0.7728]
[1748615318025,1.3141,2587.4,2587.3,0.7728]
[1748615318325,0.7728,2587.3,2587.2,0.77281]
[1748615318521,1.3141,2587.4,2586.9,1.882]
[1748615318725,0.77291,2587.0,2586.8,3.2078]
[1748615318920,1.93201,2587.3,2586.8,3.2078]
[1748615319227,4.5286,2587.2,2586.5,4.479]
[1748615319422,7.11972,2587.2,2586.4,7.6868]
[1748615319627,0.77294,2586.9,2586.5,1.3089]
[1748615319823,0.7729,2587.0,2586.5,3.2415]
[1748615320021,1.3208,2586.9,2586.8,0.77293]
[1748615320329,0.77295,2586.8,2586.7,3.98076]
[1748615320725,0.77301,2586.6,2586.5,1.3089]
[1748615321022,1.3208,2586.9,2586.4,4.479]
[1748615321228,0.77303,2586.6,2586.5,0.77304]
[1748615321625,0.77304,2586.5,2586.4,4.479]
[1748615322133,0.06993857,2586.1,2586.0,3.98678979]
[1748615323030,0.06993857,2586.1,2586.0,8.98678979]
[1748615323233,0.06993857,2586.1,2586.0,3.98678979]
[1748615323424,0.06993857,2586.1,2586.0,8.98678979]
[1748615323625,0.06993857,2586.1,2586.0,3.98678979]
[1748615324622,0.84309857,2586.1,2586.0,0.00579979]
[1748615324830,2.18619857,2586.1,2586.0,0.00579979]
[1748615325038,2.18619857,2586.1,2586.0,0.77898979]
[1748615325331,0.84309857,2586.1,2586.0,0.77898979]
[1748615325527,0.84309857,2586.1,2586.0,0.00579979]
[1748615325834,0.06993857,2586.1,2586.0,0.77898979]
[1748615326331,0.06993857,2586.1,2586.0,2.10048979]
[1748615326733,0.84309857,2586.1,2586.0,2.10048979]
[1748615326936,0.84309857,2586.1,2586.0,0.00579979]
[1748615327734,3.2078,2587.8,2586.0,9.21359979]
[1748615328035,3.2078,2587.5,2586.6,3.2078]
[1748615328336,0.77298,2586.7,2586.6,3.2078]
[1748615328639,3.2078,2587.2,2586.6,3.2078]
[1748615328837,1.3088,2586.9,2586.8,0.77294]
[1748615329038,1.3088,2586.9,2586.7,0.77296]
[1748615329232,0.77298,2586.7,2586.6,3.2078]
[1748615329438,1.3088,2586.9,2586.6,0.77298]
[1748615329633,0.77298,2586.7,2586.6,0.77298]
[1748615330031,1.3088,2586.9,2586.4,1.3215]
[1748615330338,1.40007,2586.8,2586.7,0.77298]
[1748615330837,0.77295,2586.9,2586.8,0.77293]
[1748615331337,0.77298,2586.8,2586.7,0.77296]
[1748615332036,0.6459,2587.0,2586.8,0.77292]
[1748615332037,0.77293,2586.9,2586.8,0.77292]
[1748615332634,0.77294,2586.9,2586.8,0.77292]
[1748615333126,0.77298,2586.8,2586.7,0.77297]
[1748615333327,0.6459,2587.0,2586.6,3.2078]
[1748615333630,0.77298,2586.8,2586.7,0.77296]
[1748615334436,0.77294,2586.9,2586.8,0.77292]
[1748615336040,0.77298,2586.8,2586.7,0.77296]
[1748615337839,0.7731,2586.4,2586.3,0.77309]
[1748615338040,0.77307,2586.5,2586.4,0.77305]
[1748615338341,1.93243,2586.8,2586.5,0.773]
[1748615338342,0.77302,2586.6,2586.5,0.773]
[1748615338540,0.77307,2586.5,2586.4,0.77305]
[1748615338849,0.77309,2586.4,2586.3,0.77307]
[1748615339037,0.77307,2586.5,2586.4,0.77303]
[1748615339237,0.7731,2586.4,2586.3,0.77308]
[1748615339649,0.7731,2586.3,2586.2,3.98093]
[1748615339944,0.77309,2586.4,2586.3,0.77306]
[1748615340538,0.7731,2586.3,2586.2,3.2078]
[1748615341339,1.4083,2586.3,2586.2,3.98093]
[1748615341536,0.6129,2586.4,2586.2,3.2078]
[1748615341846,3.4006,2586.9,2586.6,0.77301]
[1748615341847,1.2407,2586.7,2586.6,0.77301]
[1748615342048,0.6481,2586.8,2586.7,0.77298]
[1748615342250,2.66176,2586.8,2586.7,0.77298]
[1748615343535,0.77302,2586.7,2586.6,0.77299]
[1748615343743,2.66177,2586.8,2586.7,0.77298]
[1748615344046,0.77301,2586.7,2586.6,0.773]
[1748615344247,2.01371,2586.7,2586.6,0.773]
[1748615344745,1.2407,2586.7,2586.6,0.773]
[1748615345154,2.01368,2586.7,2586.6,0.773]
[1748615345337,2.08361857,2586.7,2586.6,0.773]
[1748615345643,2.08361857,2586.7,2586.6,3.9808]
[1748615345848,2.08361857,2586.7,2586.6,3.2078]
[1748615346148,2.08361857,2586.7,2586.6,3.98081]
[1748615346343,1.31063857,2586.7,2586.3,4.5548]
[1748615346545,0.77307,2586.4,2586.3,3.2078]
[1748615346844,0.77316,2586.1,2586.0,0.00579979]
[1748615347242,0.77316,2586.1,2586.0,0.77898979]
[1748615347448,0.77346,2585.1,2585.0,3.2078]
[1748615347653,1.93344,2585.4,2584.9,3.2078]
[1748615347853,1.2617,2585.3,2585.1,0.77344]
[1748615348053,0.77347,2585.1,2585.0,0.77346]
[1748615348258,0.77349,2585.0,2584.9,3.9813]
[1748615348559,0.77348,2585.1,2585.0,0.77348]
[1748615348944,2.03518,2585.1,2585.0,0.77348]
[1748615349150,1.2617,2585.1,2585.0,0.77348]
[1748615349349,2.03517,2585.1,2584.9,3.2078]
[1748615349550,1.2617,2585.1,2585.0,0.77349]
[1748615349748,0.77349,2585.0,2584.9,3.98129]
[1748615349957,0.77349,2585.0,2584.9,3.98132]
[1748615350454,0.77355,2584.8,2584.7,0.00579979]
[1748615351958,0.77355,2584.8,2584.7,0.77937979]
[1748615352154,1.2234,2584.9,2584.7,0.00579979]
[1748615352458,0.77355,2584.8,2584.7,0.77935979]
[1748615352646,0.77355,2584.8,2584.7,0.00579979]
[1748615352854,1.2234,2584.9,2584.7,0.77937979]
[1748615353052,0.77355,2584.8,2584.7,0.77937979]
[1748615353254,0.77355,2584.8,2584.7,0.00579979]
[1748615353850,0.77355,2584.8,2584.7,0.77937979]
[1748615354050,0.77355,2584.8,2584.7,0.00579979]
[1748615354256,1.2234,2584.9,2584.7,0.77937979]
[1748615354455,0.77355,2584.8,2584.7,0.00579979]
[1748615355658,7.01605,2584.8,2584.7,0.00579979]
[1748615355862,2.01605,2584.8,2584.7,0.00579979]
[1748615356161,6.48605,2584.8,2584.7,0.00579979]
[1748615356362,6.67945,2584.8,2584.7,0.00579979]
[1748615356764,2.20945,2584.8,2584.7,0.00579979]
[1748615357356,0.77367,2584.4,2584.3,0.31327]
[1748615357965,0.77379,2584.0,2583.9,3.2078]
[1748615358363,0.77377,2584.1,2584.0,0.77379]
[1748615358657,3.2078,2584.2,2583.8,1.2769]
[1748615358856,2.02408,2584.1,2583.9,0.7738]
[1748615359055,1.2503,2584.1,2584.0,0.77379]
[1748615359266,2.02406,2584.1,2583.8,1.2769]
[1748615359453,2.02406,2584.1,2583.9,0.7738]
[1748615359764,2.02406,2584.1,2584.0,0.77379]
[1748615359962,1.2503,2584.1,2583.8,1.2769]
[1748615360163,2.02406,2584.1,2583.9,0.77379]
[1748615360466,2.02408,2584.1,2583.9,0.77382]
[1748615360668,0.77382,2583.9,2583.8,0.77383]
[1748615360965,1.32023857,2584.1,2583.8,0.77383]
[1748615361166,0.77381,2584.0,2583.8,0.77383]
[1748615361969,0.77382,2583.9,2583.8,0.77383]
[1748615362260,0.77381,2584.0,2583.8,0.77383]
[1748615362465,0.77381,2584.0,2583.9,0.77382]
[1748615362667,0.77381,2584.0,2583.8,0.77383]
[1748615362868,1.32023857,2584.1,2584.0,0.77379]
[1748615363165,0.1934,2584.8,2584.2,1.93425]
[1748615363466,0.1934,2584.8,2584.7,3.98138]
[1748615364461,0.96695,2584.8,2584.7,3.2078]
[1748615364969,0.1934,2584.8,2584.7,3.98138]
[1748615365666,0.77361,2584.6,2584.5,2.63574]
[1748615365970,0.1934,2584.8,2584.7,0.77358]
[1748615366164,0.1934,2584.8,2584.7,3.98138]
[1748615368172,0.96695,2584.8,2584.7,3.98138]
[1748615368668,0.1934,2584.8,2584.7,3.98138]
[1748615372665,3.2078,2585.9,2585.2,1.93357]
[1748615372860,2.08136,2585.8,2585.7,0.77328]
[1748615373066,0.6444,2585.9,2585.8,0.77325]
[1748615373460,4.5159,2586.2,2585.8,1.93311]
[1748615373672,4.5159,2586.2,2586.1,0.77316]
[1748615373974,1.3081,2586.2,2586.1,0.77316]
[1748615374167,0.65019979,2586.3,2586.2,0.77313]
[1748615374570,0.77324,2585.9,2585.7,0.00579979]
[1748615374767,0.77325,2585.8,2585.7,0.00579979]
[1748615375263,1.93342,2585.5,2584.9,3.2078]
[1748615375567,0.7734,2585.3,2585.2,0.7734]
[1748615375764,2.78749,2585.4,2585.3,0.7734]
[1748615376167,2.0141,2585.4,2585.3,0.7734]
[1748615376364,0.6731,2585.7,2585.2,5.14137]
[1748615376673,1.4464,2585.7,2585.6,0.77331]
[1748615376873,0.77332,2585.6,2585.5,0.77333]
[1748615377167,2.11462,2585.6,2585.5,0.77333]
[1748615377371,0.77335,2585.5,2585.4,0.77335]
[1748615377565,2.11465,2585.5,2585.4,0.77335]
[1748615377765,1.3413,2585.5,2585.4,0.77335]
[1748615378274,2.11464,2585.5,2585.4,0.77335]
[1748615378571,1.3413,2585.5,2585.4,0.77335]
[1748615378871,2.11464,2585.5,2585.4,0.77335]
[1748615380267,1.3413,2585.5,2585.4,0.77335]
[1748615380573,1.4464,2585.7,2585.6,0.77331]
[1748615380967,2.6943,2585.7,2585.6,0.77331]
[1748615381470,1.921,2585.7,2585.6,0.77331]
[1748615381673,2.69428,2585.7,2585.6,0.77331]
[1748615384577,2.02118,2585.7,2585.6,0.77331]
[1748615385075,1.2479,2585.7,2585.6,0.77331]
[1748615385379,0.6465,2585.9,2585.6,0.77331]
[1748615385380,0.6465,2585.9,2585.8,0.77325]
[1748615385569,1.41972,2585.9,2585.8,0.77325]
[1748615385967,0.6728,2586.0,2585.6,1.93327]
[1748615386168,1.41543857,2586.2,2586.1,0.77316]
[1748615386873,0.06993857,2586.2,2586.1,0.77316]
[1748615387172,0.06993857,2586.2,2586.1,2.98096]
[1748615387478,0.06993857,2586.2,2586.1,3.75412]
[1748615388273,0.00579979,2586.3,2586.2,0.77313]
[1748615388474,0.00579979,2586.3,2586.2,2.72163]
[1748615389871,0.00579979,2586.3,2586.2,0.77313]
[1748615390070,0.84883836,2586.3,2586.2,0.77313]
[1748615390270,0.07573836,2586.3,2586.1,2.98096]
[1748615390470,2.14625836,2586.3,2586.2,0.77313]
[1748615390672,1.37313836,2586.3,2586.2,0.77313]
[1748615392381,0.07573836,2586.3,2586.2,0.77313]
[1748615396872,0.07573836,2586.3,2586.2,5.23013]
[1748615397272,0.07573836,2586.3,2586.2,10.23013]
[1748615397482,0.6403,2586.8,2586.7,0.77298]
[1748615397685,0.6403,2586.8,2586.7,3.98078]
[1748615397887,2.71215,2586.8,2586.7,3.98078]
[1748615398175,1.9392,2586.8,2586.7,3.98078]
[1748615399786,3.2078,2588.7,2586.8,3.86477]
[1748615400081,0.77253,2588.2,2587.7,3.2078]
[1748615400378,0.77262,2587.9,2587.8,0.77264]
[1748615400577,1.3,2588.1,2587.6,0.77269]
[1748615400772,2.07266,2587.8,2587.7,0.77268]
[1748615400975,1.3,2587.8,2587.7,0.77268]
[1748615401174,0.77268,2587.7,2587.6,0.00579979]
[1748615402579,2.07267,2587.8,2587.6,0.77850979]
[1748615402784,0.77268,2587.7,2587.6,0.00579979]
[1748615402988,2.09858,2587.7,2587.6,0.00579979]
[1748615403185,1.2545,2588.0,2587.6,0.00579979]
[1748615403387,0.77267,2587.8,2587.7,0.77267]
[1748615403596,0.77266,2587.8,2587.7,0.77266]
[1748615403885,2.5804,2588.0,2587.6,0.00579979]
[1748615404077,2.5804,2588.0,2587.9,0.77262]
[1748615404284,3.35299,2588.0,2587.9,0.77262]
[1748615404486,0.77268,2587.7,2587.6,0.00579979]
[1748615405881,2.09748,2587.7,2587.6,0.00579979]
[1748615406079,6.3248,2587.7,2586.6,3.2078]
[1748615406286,6.3248,2587.7,2586.3,7.96378606]
[1748615406287,1.93223,2587.0,2586.3,7.96378606]
[1748615406485,3.2078,2586.8,2586.3,0.30098606]
[1748615406686,1.3248,2586.7,2586.3,0.30098606]
[1748615407283,1.3248,2586.7,2586.2,0.00579979]
[1748615407485,1.3248,2586.7,2586.6,0.77301]
[1748615407781,0.00579979,2586.8,2586.7,0.77298]
[1748615408187,0.00579979,2586.8,2586.7,2.10478]
[1748615409188,0.00579979,2586.8,2586.2,4.44679979]
[1748615409486,0.77309,2586.4,2586.3,0.77309]
[1748615409683,0.7731,2586.3,2586.2,5.21990979]
[1748615409987,0.7731,2586.3,2586.2,4.44679979]
[1748615410588,0.7731,2586.3,2586.2,5.21992979]
[1748615410792,0.77309,2586.4,2586.3,0.77309]
[1748615411100,1.2897,2586.7,2586.3,3.2078]
[1748615411283,0.00579979,2586.8,2586.7,0.77298]
[1748615411486,1.9117,2587.2,2587.1,0.77286]
[1748615411687,1.39138,2587.4,2587.3,0.7728]
[1748615412189,7.55055,2587.4,2586.8,3.2078]
[1748615412391,0.77295,2586.8,2586.7,4.441]
[1748615412591,0.77301,2586.6,2586.5,3.2078]
[1748615412985,0.77304,2586.5,2586.4,0.77305]
[1748615413284,0.77307,2586.5,2586.4,0.77305]
[1748615413479,0.6186,2586.6,2586.3,4.441]
[1748615413679,2.07037,2586.4,2586.3,4.441]
[1748615413879,2.07039,2586.4,2586.3,0.7731]
[1748615414089,2.07037,2586.4,2586.3,0.7731]
[1748615414283,1.2973,2586.4,2586.3,0.7731]
[1748615414590,0.6186,2586.6,2586.5,0.77304]
[1748615414790,1.8652,2586.6,2586.2,0.00579979]
[1748615415090,0.77309,2586.4,2586.3,0.77308]
[1748615415387,1.8652,2586.6,2586.2,0.00579979]
[1748615415588,0.77306,2586.5,2586.4,0.77305]
[1748615415788,0.7731,2586.4,2586.3,0.77308]
[1748615416487,0.77306,2586.5,2586.4,0.77304]
[1748615416693,0.6186,2586.6,2586.2,0.00579979]
[1748615416992,0.7731,2586.3,2586.2,0.77892979]
[1748615417385,0.7731,2586.3,2586.2,0.00579979]
[1748615417885,0.7731,2586.3,2586.2,0.77892979]
[1748615418284,0.77309,2586.4,2586.2,0.00579979]
[1748615418487,0.77309,2586.4,2586.3,0.77307]
[1748615418788,0.7731,2586.3,2586.2,0.77890979]
[1748615418990,0.7731,2586.3,2586.2,0.77892979]
[1748615419495,0.77305,2586.5,2586.4,0.77304]
[1748615419888,0.6186,2586.6,2586.5,0.77304]
[1748615420189,0.6186,2586.6,2586.2,0.00579979]
[1748615420489,0.6144,2586.7,2586.6,0.77301]
[1748615420690,0.6398,2586.9,2586.8,0.77295]
[1748615421489,0.6245,2587.1,2587.0,0.77289]
[1748615421690,0.77282,2587.3,2587.2,0.7728]
[1748615421885,1.93225,2587.0,2586.4,3.2078]
[1748615422085,3.2078,2587.4,2587.3,0.77277]
[1748615422295,0.6398,2587.9,2587.8,0.77265]
[1748615422495,0.6245,2588.3,2588.2,0.77253]
[1748615422795,2.28625509,2588.4,2588.2,0.77251]
[1748615422994,2.28625509,2588.5,2588.2,0.77251]
[1748615423192,1.282,2588.6,2588.1,3.2078]
[1748615423590,1.282,2588.6,2588.5,0.77244]
[1748615423892,0.6422,2588.6,2588.5,0.77244]
[1748615424097,0.6422,2588.6,2588.1,3.2078]
[1748615424291,0.77253,2588.2,2588.1,3.2078]
[1748615424592,0.77254,2588.2,2588.1,0.77255]
[1748615424793,0.77254,2588.2,2587.7,8.893]
[1748615424997,0.77255,2588.2,2588.0,0.77257]
[1748615425294,3.98033,2588.3,2588.1,0.77255]
[1748615425493,0.77253,2588.3,2588.1,0.77255]
[1748615425696,0.77254,2588.2,2587.8,1.2442]
[1748615426196,0.6745,2588.5,2588.1,5.13917]
[1748615426391,0.6422,2588.6,2588.5,0.77244]
[1748615426993,3.98018,2588.7,2588.6,0.77241]
[1748615427396,3.2078,2588.7,2588.6,0.77241]
[1748615427597,3.2078,2588.7,2588.5,0.77243]
[1748615427798,0.77256,2588.2,2588.1,0.77255]
[1748615427995,0.77252,2588.3,2588.2,0.77252]
[1748615428498,5.0,2588.3,2587.7,4.439]
[1748615428699,5.13903,2588.4,2587.7,4.439]
[1748615428700,3.2078,2588.4,2587.9,1.93149]
[1748615428904,5.13835,2589.3,2588.2,3.2078]
[1748615429098,0.77234,2588.9,2588.8,0.77234]
[1748615429293,3.2078,2589.3,2588.5,1.93109]
[1748615429594,0.77226,2589.2,2589.1,0.77225]
[1748615430097,0.77229,2589.0,2588.9,0.77809979]
[1748615430603,0.77227,2589.2,2589.1,0.77225]
[1748615430906,0.77226,2589.2,2589.1,0.77225]
[1748615431405,0.77221,2589.3,2589.2,0.77221]
[1748615431606,0.77226,2589.2,2589.1,0.77225]
[1748615431796,2.10766,2589.2,2589.1,0.77225]
[1748615431993,3.2078,2590.5,2589.1,12.6468]
[1748615432198,2.54563,2590.4,2589.8,3.2078]
[1748615432402,0.77195,2590.2,2589.8,3.2078]
[1748615432597,0.77195,2590.2,2590.1,0.77197]
[1748615432798,0.6159,2590.4,2589.9,1.3511]
[1748615432998,0.77195,2590.2,2590.1,0.77196]
[1748615433203,0.6159,2590.4,2589.9,1.3511]
[1748615433613,3.2078,2590.2,2589.2,8.946]
[1748615433812,1.93029,2589.6,2588.9,3.21359979]
[1748615434111,0.77228,2589.1,2588.9,3.21359979]
[1748615434314,0.77229,2589.0,2588.9,0.00579979]
[1748615434507,3.2078,2589.3,2588.9,0.00579979]
[1748615434710,3.2078,2589.5,2589.1,0.77225]
[1748615434911,3.2078,2589.5,2589.0,0.77227]
[1748615435121,3.2078,2589.5,2589.0,2.04277]
[1748615435415,3.2078,2589.5,2589.0,1.2705]
[1748615435710,0.77225,2589.2,2589.0,5.25058]
[1748615435917,0.77222,2589.3,2589.0,4.4783]
[1748615436118,0.77223,2589.2,2589.1,0.77225]
[1748615436311,0.77223,2589.2,2588.9,0.00579979]
[1748615436312,0.77229,2589.0,2588.9,0.00579979]
[1748615436513,0.77229,2589.0,2588.9,0.77811979]
[1748615436712,3.2078,2589.2,2589.1,0.77226]
[1748615436916,4.4943,2589.6,2589.0,1.3172]
[1748615437116,4.4943,2589.6,2589.1,0.6738]
[1748615437313,0.7722,2589.3,2589.2,2.08941]
[1748615437515,5.8223,2589.6,2589.2,1.3172]
[1748615437715,7.75262,2589.6,2589.2,1.3172]
[1748615437915,0.7722,2589.3,2589.2,1.3172]
[1748615438115,5.8223,2589.6,2589.2,1.3172]
[1748615438418,3.97992,2589.6,2589.5,0.77214]
[1748615438619,4.5337,2590.1,2589.5,3.2078]
[1748615438811,4.5337,2590.1,2589.6,1.3172]
[1748615439212,4.5337,2590.1,2589.8,0.77205]
[1748615439213,0.77205,2589.9,2589.8,0.77205]
[1748615439417,5.8139,2590.1,2589.6,1.3172]
[1748615439618,7.74384,2590.1,2589.6,2.08931]
[1748615439823,0.77207,2589.8,2589.6,2.08931]
[1748615440120,0.77207,2589.8,2589.7,1.2846]
[1748615441021,0.77202,2590.0,2589.9,0.77201]
[1748615441215,0.77204,2589.9,2589.8,0.77203]
[1748615441415,0.77202,2590.0,2589.9,0.77201]
[1748615441616,2.09788,2590.1,2590.0,0.772]
[1748615441816,0.77201,2590.0,2589.9,0.772]
[1748615442019,1.42729,2590.1,2590.0,0.772]
[1748615442223,1.42728,2590.1,2590.0,0.772]
[1748615442518,0.84187857,2590.2,2590.1,0.77197]
[1748615442726,0.06993857,2590.2,2590.1,0.77197]
[1748615443119,0.06993857,2590.2,2589.8,1.9406]
[1748615443320,0.77202,2590.0,2589.9,0.77201]
[1748615443623,0.77202,2590.0,2589.9,2.07841]
[1748615443819,0.77202,2590.0,2589.9,2.07842]
[1748615444326,0.77199,2590.0,2589.9,1.3064]
[1748615444626,0.77199,2590.0,2589.9,2.07842]
[1748615445128,0.06993857,2590.2,2589.9,1.3064]
[1748615445422,0.06993857,2590.2,2590.1,0.77197]
[1748615445627,0.84187857,2590.2,2590.1,0.77197]
[1748615445925,0.06993857,2590.2,2590.1,0.77197]
[1748615446125,0.06993857,2590.2,2590.1,3.97977]
[1748615446322,4.5135,2590.7,2590.6,0.77182]
[1748615446323,3.97961,2590.7,2590.6,0.77182]
[1748615446822,0.77185,2590.6,2590.5,0.77183]
[1748615447017,0.77185,2590.5,2590.4,1.26249979]
[1748615447224,1.2214,2590.8,2590.5,0.77182]
[1748615447418,0.77179,2590.7,2590.6,2.02852]
[1748615447724,0.77179,2590.7,2590.6,1.2567]
[1748615448125,0.77185,2590.5,2590.4,0.00579979]
[1748615449317,2.70455,2590.5,2590.4,0.00579979]
[1748615450123,2.77448857,2590.5,2590.4,0.00579979]
[1748615450927,0.06993857,2590.5,2590.4,0.77767979]
[1748615451227,0.06993857,2590.5,2590.4,6.43327979]
[1748615451624,1.92905,2591.3,2590.4,6.43327979]
[1748615451625,3.2078,2591.6,2590.4,10.66139979]
[1748615451821,3.2078,2591.6,2590.8,0.77174]
[1748615452022,1.9292,2591.1,2590.4,4.43179979]
[1748615452317,3.2078,2591.3,2590.6,1.2296]
[1748615452523,0.77165,2591.2,2591.1,0.77167]
[1748615453126,0.77168,2591.1,2591.0,0.77168]
[1748615453325,3.2078,2591.3,2591.0,1.2296]
[1748615453522,3.2078,2591.3,2591.2,0.77164]
[1748615453826,0.77167,2591.2,2591.1,0.77166]
[1748615454022,3.97942,2591.3,2591.2,0.77164]
[1748615454225,3.2078,2591.3,2591.0,0.6646]
[1748615454417,0.7717,2591.0,2590.9,8.4045]
[1748615454620,0.7717,2591.0,2590.9,8.40451]
[1748615454818,0.77169,2591.1,2591.0,0.77167]
[1748615455027,3.97943,2591.3,2591.2,0.77164]
[1748615455331,3.2078,2591.3,2591.2,0.77164]
[1748615455527,3.97941,2591.3,2591.2,0.77164]
[1748615456031,3.2078,2591.3,2591.2,0.77164]
[1748615456226,3.2078,2591.3,2590.9,3.2078]
[1748615456524,0.77165,2591.2,2591.1,0.77164]
[1748615456726,3.2078,2591.3,2591.2,0.77164]
[1748615456927,3.2078,2592.6,2591.2,3.2078]
[1748615457125,0.77125,2592.5,2592.4,3.2078]
[1748615457322,3.2078,2593.0,2592.6,0.77121]
[1748615457522,3.97893,2593.0,2592.4,3.2078]
[1748615457731,0.7711,2593.0,2592.9,3.2078]
[1748615458031,3.2078,2593.6,2592.9,3.2078]
[1748615458231,3.2078,2593.6,2592.7,1.92797]